Cogmind - Beta 15 @@@ ROGUE MODE // 2025.07.09 @ 23:10:24 Player: beans Result: Destroyed by G-47 Trooper with Particle Gun Performance ------------- Evolutions (0) 0 Regions Visited (3) 600 Robots Destroyed (40) 200 Value Destroyed (870) 870 Prototype IDs (0) 0 Alien Tech Used (0) 0 Bonus (0) 0 TOTAL SCORE: 1670 Bonus ------- None Cogmind --------- Core Integrity 0/250 Matter 252/300 Energy 65/100 System Corruption 1% Temperature Cool (9) Movement Core (100) Ox1 Location -7/Recycling Parts ------- > --- POWER (1) -------- (None) > --- PROPULSION (2) --- (None) > --- UTILITY (2) ------ Signal Interpreter Core Analyzer > --- WEAPON (2) ------- Flak Cannon > --- INVENTORY (5) ---- Makeshift Hacking Suite Arc Projector Mini Grenade Launcher Peak State ------------ > --- POWER ------------ (None) > --- PROPULSION ------- (None) > --- UTILITY ---------- Signal Interpreter Core Analyzer > --- WEAPON ----------- Assault Cannon Flak Cannon > --- INVENTORY -------- Makeshift Hacking Suite Arc Projector Mini Grenade Launcher [Rating: 12] Favorites ----------- Power Makeshift Power Source Engine Makeshift Power Source Propulsion Light Treads Treads Light Treads Utility Improved Targeting Computer Processor Improved Targeting Computer Weapon Light Cannon Energy Cannon Heavy Ion Cannon Ballistic Gun Assault Rifle Ballistic Cannon Light Cannon Launcher Mini Grenade Launcher Build | -11 -10 -10 -7 ------- Run | Yrd Mat Sub Rec Slots Evolved . | . . . . Power . | . . . . Propulsion . | . . . . Utility . | . . . . Weapon . | . . . . Parts Attached 19 | 5 7 3 4 Power 1 | . . 1 . Engine 1 | . . 1 . Core . | . . . . Reactor . | . . . . Propulsion 2 | 2 . . . Treads 2 | 2 . . . Leg . | . . . . Wheel . | . . . . Hover . | . . . . Flight . | . . . . Utility 4 | . 2 1 1 Device . | . . . . Storage . | . . . . Processor 4 | . 2 1 1 Hackware . | . . . . Protection . | . . . . Artifact . | . . . . Weapon 12 | 3 5 1 3 Energy Gun . | . . . . Energy Cannon 1 | . . . 1 Ballistic Gun 4 | 3 . 1 . Ballistic Cannon 5 | . 3 . 2 Launcher 2 | . 2 . . Special Weapon . | . . . . Impact Weapon . | . . . . Slashing Weapon . | . . . . Piercing Weapon . | . . . . Special Melee Weapon . | . . . . Unidentified Prototypes . | . . . . Parts Lost 8 | . . 5 3 Power 1 | . . 1 . Propulsion 2 | . . 2 . Utility 1 | . . . 1 Weapon 4 | . . 2 2 Highest Loss Streak 3 | . . 3 3 To Critical Strikes . | . . . . Average Backups 4 | . 4 4 4 Power . | . . . . Propulsion . | . . . . Utility . | . . . 1 Weapon 3 | . 4 3 3 Tool/Special . | . . . . Unused Backups 4 | . . . 4 Power . | . . . . Propulsion . | . . . . Utility 1 | . . . 1 Weapon 3 | . . . 3 Tool/Special . | . . . . Average Slot Usage (%) 73 | . 81 71 56 Treads 18 | . 28 15 . Processor 26 | . 24 28 27 Energy Cannon 1 | . . . 9 Ballistic Gun 1 | . 1 2 . Ballistic Cannon 18 | . 16 21 16 Launcher 5 | . 9 3 1 Peak Build Rating 12 | 4 10 11 12 Average Rating 7 | 3 8 7 10 On Entrance 5 | . 4 8 8 Naked Turns . | . . . . Heaviest Build 13 | 4 6 10 13 Greatest Support 40 | 40 40 40 3 Greatest Overweight (x) 4 | . 1 . 4 Average Overweight (x) . | . . . 2 Largest Inventory Capacity 5 | 5 5 5 5 Average Capacity 5 | 5 5 5 5 Most Carried 5 | 5 5 5 5 Average Carried 4 | . 4 4 4 Final Capacity 5 | 5 5 5 5 Final Carried 5 | . 5 4 3 Class Distribution -------------------- 100% | Mutant Dominant Class ---------------- Mutant | -10/Materials Mutant | -10/Subcaves Mutant | -7/Recycling Resources | -11 -10 -10 -7 ----------- Run | Yrd Mat Sub Rec Matter Collected 1079 | 195 252 329 303 Remotely . | . . . . Salvage Created 753 | . 410 264 79 Parts 66 | . 40 23 3 Haulers Intercepted 2 | . 2 . . Recyclers Shooed . | . . . . Parts Field Recycled . | . . . . Retrieved Matter . | . . . . Parts Self-Destructed 5 | . . 5 . Prevented . | . . . . Kills | -11 -10 -10 -7 ------- Run | Yrd Mat Sub Rec Combat Hostiles Destroyed 25 | . 10 15 . Guns 1 | . . 1 . Cannons 7 | . 1 6 . AOE 17 | . 9 8 . Classes Destroyed 10 | . 7 3 . Worker 3 | . 3 . . Builder 3 | . 3 . . Hauler 2 | . 2 . . Recycler 3 | . 2 . 1 Turret 2 | . . 2 . Watcher 2 | . 2 . . Swarmer 10 | . 5 5 . Grunt 5 | . 5 . . Sentry 1 | . . 1 . Subdweller 9 | . . 9 . Best Kill Streak 8 | . 8 6 1 Combat Bots Only 7 | . 7 4 . Max Kills in Single Turn 4 | . 4 2 1 Gunslinging . | . . . . Exploded 3 | . 3 2 . Melee . | . . . . Uniques/NPCs Destroyed . | . . . . Combat | -11 -10 -10 -7 -------- Run | Yrd Mat Sub Rec Hostile Shots Fired 110 | . 25 67 18 Missed 40 | . 13 22 5 Hits 70 | . 12 45 13 Melee 2 | . . . 2 Projectile 68 | . 12 45 11 Critical Strikes 1 | . . 1 . Damage Taken 1018 | . 105 674 239 Core 261 | . 37 122 102 Absorbed by Shields . | . . . . Core Remaining (%) 100 | 100 . . . Volleys Fired 71 | . 22 42 7 Largest 2 | . 2 2 2 Hottest 102 | . 60 60 102 Shots Fired 129 | . 43 76 10 Gun 9 | . 2 7 . Cannon 77 | . 14 53 10 Launcher 43 | . 27 16 . Special . | . . . . Kinetic 81 | . 16 60 5 Thermal 5 | . . . 5 Explosive 43 | . 27 16 . Electromagnetic . | . . . . Robot Hit Streak 15 | . 3 15 9 Robot Miss Streak 3 | . 2 3 3 Penetration Max . | . . . . Secondary Targets . | . . . . Shots Hit Robots 58 | . 9 43 6 Core Hits 65 | . 33 28 4 Critical Kills . | . . . . Critical Parts Destroyed . | . . . . Critical Strikes 4 | . 2 2 . Blast 4 | . 2 2 . Melee Attacks . | . . . . Impact . | . . . . Slashing . | . . . . Piercing . | . . . . Sneak Attacks . | . . . . Combat Hostiles . | . . . . Follow-up Attacks . | . . . . Damage Inflicted 3034 | . 1321 1557 156 Guns 58 | . . 58 . Cannons 907 | . 127 624 156 Explosions 2067 | . 1192 875 . Melee . | . . . . Ramming 2 | . 2 . . Kinetic 912 | . 127 682 103 Thermal 53 | . . . 53 Explosive 2067 | . 1192 875 . Electromagnetic . | . . . . Impact . | . . . . Slashing . | . . . . Piercing . | . . . . Highest Corruption 1 | . . . 1 Average Corruption 1 | . . . 1 Corruption Purged . | . . . . Corruption Blocked . | . . . . Effects 1 | . . . 1 Matter Fused 1 | . . . 1 Overload Shots . | . . . . Overflow Damage 11 | . 11 . . Projectiles 7 | . 7 . . Explosions 4 | . 4 . . Melee . | . . . . Knockbacks 10 | . 1 6 3 Impact . | . . . . Kinetic 9 | . 1 6 2 Secondary 1 | . . . 1 Self-Inflicted Damage . | . . . . Shots . | . . . . Rammed 1 | . 1 . . Targets Rammed 1 | . 1 . . Kicked . | . . . . Crushed . | . . . . Highest Temperature 36 | . 1 2 36 Average Temperature 14 | . 1 2 15 Received Heat Transfer 216 | . 18 171 27 Siege Activations . | . . . . Martial Activations . | . . . . Shielding Activations . | . . . . Robots Disrupted . | . . . . Combat Hostiles . | . . . . Robots Corrupted . | . . . . Combat Hostiles . | . . . . Parts Fried . | . . . . Impact Corruptions . | . . . . Robots Melted . | . . . . Combat Hostiles . | . . . . Parts Melted 1 | . . . 1 Heat Transferred 74 | . . . 74 Parts Sabotaged . | . . . . Parts Stolen . | . . . . Parts Stripped . | . . . . Power Chain Reactions . | . . . . Alert | -11 -10 -10 -7 ------- Run | Yrd Mat Sub Rec Maximum Alert Level 1 | . 1 . . Low Security (%) 65 | 100 50 . 100 Level 1 34 | . 49 . . Level 2 . | . . . . Level 3 . | . . . . Level 4 . | . . . . Level 5 . | . . . . High Security . | . . . . Max Security . | . . . . Peak Influence 336 | . 336 . 97 Initial 97 | . . . 97 Average 141 | . 191 . 37 Influence Increases 740 | . 482 250 8 Destroy 0b10 Robot/C 360 | . 200 160 . Destroy 0b10 Robot/NC 65 | . 60 . 5 Destroy Leader 58 | . 58 . . Disable Machine 75 | . 75 . . Destroy Structure 92 | . 89 . 3 Lose Combat Pursuer 90 | . . 90 . Influence Decreases 740 | . 330 198 212 Entered New Map 181 | . . 74 107 Time Decay 558 | . 330 124 104 Lost Part 1 | . . . 1 Squads Dispatched 3 | . 3 . . Investigation 1 | . 1 . . Extermination . | . . . . Reinforcement 2 | . 2 . . Assault . | . . . . Garrison . | . . . . Intercept . | . . . . Searches Triggered . | . . . . Construction Impeded . | . . . . Haulers Reinforced . | . . . . Active Scanning Responses . | . . . . Cargo Convoy Interrupts . | . . . . Stealth | -11 -10 -10 -7 --------- Run | Yrd Mat Sub Rec Distress Signals 1 | . 1 . . Communications Jammed . | . . . . Distress Signals . | . . . . Times Spotted 37 | . 14 17 6 Peak Tracking Total 6 | . 4 5 6 Tactical Retreats 2 | . . 2 . Traps | -11 -10 -10 -7 ------- Run | Yrd Mat Sub Rec Traps Triggered 1 | . 1 . . Indirectly . | . . . . Trap Hack Attempts . | . . . . Triggered . | . . . . Disarmed . | . . . . Reprogrammed . | . . . . Reused . | . . . . Traps Extracted . | . . . . Installed . | . . . . Triggered . | . . . . Machines | -11 -10 -10 -7 ---------- Run | Yrd Mat Sub Rec Machines Disabled 9 | . 5 4 . Max in Single Turn 3 | . 3 2 . Machines Repaired . | . . . . Machines Dismantled . | . . . . Machines Sabotaged . | . . . . Overloaded Fab Kills . | . . . . Hacking | -11 -10 -10 -7 --------- Run | Yrd Mat Sub Rec Machines Accessed . | . . . . Terminals . | . . . . Fabricators . | . . . . Repair Stations . | . . . . Recycling Units . | . . . . Scanalyzers . | . . . . Garrison Access . | . . . . Total Hacks . | . . . . Successful . | . . . . Failed . | . . . . Catastrophic . | . . . . Database Lockouts . | . . . . Manual . | . . . . Terminals . | . . . . Fabricators . | . . . . Repair Stations . | . . . . Recycling Units . | . . . . Scanalyzers . | . . . . Garrison Access . | . . . . Terminal Hacks . | . . . . Fabricator Hacks . | . . . . Repair Station Hacks . | . . . . Recycling Unit Hacks . | . . . . Scanalyzer . | . . . . Garrison Access Hacks . | . . . . Unauthorized Hacks . | . . . . Terminals . | . . . . Fabricators . | . . . . Repair Stations . | . . . . Recycling Units . | . . . . Scanalyzers . | . . . . Garrison Access . | . . . . Data Cores Recovered . | . . . . Used . | . . . . Hacking Detections . | . . . . Full Trace Events . | . . . . Feedback Events . | . . . . Feedback Blocked . | . . . . Robot Schematics Acquired . | . . . . Robots Built . | . . . . Authchips . | . . . . Time . | . . . . Total Robot Build Rating . | . . . . Part Schematics Acquired . | . . . . Parts Built . | . . . . Authchips . | . . . . Time . | . . . . Total Part Build Rating . | . . . . Parts Repaired . | . . . . Time . | . . . . Parts Recycled . | . . . . Recycled Matter . | . . . . Retrieved Matter . | . . . . Retrieved Components . | . . . . Parts Scanalyzed . | . . . . Part Schematics Acquired . | . . . . Parts Damaged . | . . . . Bothacking | -11 -10 -10 -7 ------------ Run | Yrd Mat Sub Rec Used RIF Installer . | . . . . Robots Hacked . | . . . . Non-combat . | . . . . Combat . | . . . . Robot Hacks Applied . | . . . . Relay Couplers Released . | . . . . Fabnet Peak Effective % . | . . . . Robots Rewired . | . . . . Allies Hacked . | . . . . Hacks Repelled . | . . . . Allies | -11 -10 -10 -7 -------- Run | Yrd Mat Sub Rec Total Allies . | . . . . Largest Group . | . . . . Highest-Rated Group . | . . . . Highest-Rated Ally . | . . . . Total Orders . | . . . . Ally Attacks . | . . . . Total Damage . | . . . . Kills . | . . . . Allies Corrupted . | . . . . Allies Melted . | . . . . Intel | -11 -10 -10 -7 ------- Run | Yrd Mat Sub Rec Active Infowar (turns) . | . . . . Robot Analysis Total . | . . . . Derelict Logs Recovered 1 | . . 1 . Drone Launches . | . . . . Drone Recoveries . | . . . . Exploration | -11 -10 -10 -7 ------------- Run | Yrd Mat Sub Rec Turns Passed 2064 | 64 799 908 293 Spaces Moved 1339 | 44 454 712 129 Core 596 | 16 108 343 129 Treads 743 | 28 346 369 . Legs . | . . . . Wheels . | . . . . Hover . | . . . . Flight . | . . . . Fastest Speed 50 | 50 100 50 50 Average Speed 129 | 120 145 107 198 Slowest Speed 250 | 160 160 160 250 Overloaded Moves . | . . . . Propulsion Burnouts . | . . . . Robots Hopped . | . . . . Potential Cave-ins . | . . . . Cave-ins Triggered . | . . . . Exploration Rate (%) 34 | 4 60 49 26 Regions Visited 3 Branch Regions 2 Pre-discovered Areas 1 | . . 1 . Known Exits Taken 1 | . . 1 . Unknown Exits Taken 2 | 1 1 . . Scrap Searched . | . . . . Spaces Dug 7 | . 7 . . Terrain Destroyed 191 | . 108 80 3 Melee . | . . . . Projectile 3 | . . . 3 AOE 188 | . 108 80 . Terrain Rammed . | . . . . Walls Destroyed . | . . . . Machines Disabled . | . . . . Actions | -11 -10 -10 -7 --------- Run | Yrd Mat Sub Rec Total 1544 | 56 548 782 158 Wait 82 | . 52 21 9 Move 1336 | 43 453 711 129 Hop . | . . . . Pick Up 21 | 6 8 3 4 Fast Attach 3 | . 2 . 1 Attach 11 | 4 1 4 2 Detach 1 | . 1 . . Swap 7 | 1 4 . 2 Drop 11 | 2 4 1 4 Fire 71 | . 22 42 7 Melee . | . . . . Ram . | . . . . Kick . | . . . . Crush 1 | . 1 . . Escape Stasis . | . . . . Rewire . | . . . . Trap . | . . . . Miscellaneous . | . . . . Route ------- -11/Scrapyard -10/Materials (discovered 2 exits: [*Mat] / [*Sub]) -10/Subcaves (discovered 3 exits: *Mat x2 / *Rec) -7/Recycling (discovered 1 exit: [*Fac]) History --------- Turn | Location | Event 4 | -11/Scrapyard | Discovered new exit (range 15) 65 | -11/Scrapyard | Entered Materials 259 | -10/Materials | Destroyed 7 combat bots 310 | -10/Materials | Build established: Mutant 626 | -10/Materials | Discovered new exit (range 7) 849 | -10/Materials | Discovered new exit (range 8) 864 | -10/Materials | Entered Subcaves 865 | -10/Subcaves | Approached by a straggling Scientist 870 | -10/Subcaves | Discovered new exit (range 7) 926 | -10/Subcaves | A swath of the cavern ceiling suddenly collapsed 938 | -10/Subcaves | Identified exit to Materials 1005 | -10/Subcaves | Learned 2 Materials zone layouts 1078 | -10/Subcaves | Learned location of Zion (-7) 1078 | -10/Subcaves | Met a Zionite searching for "candidates" 1564 | -10/Subcaves | Core integrity fell below 50% 1571 | -10/Subcaves | A swath of the cavern ceiling suddenly collapsed 1590 | -10/Subcaves | Lost 3 parts (1n2w) 1615 | -10/Subcaves | Discovered exit to Materials (range 13) 1757 | -10/Subcaves | Discovered new exit (range 12) 1771 | -10/Subcaves | Identified exit to Recycling 1772 | -10/Subcaves | Entered Recycling 2011 | -7/Recycling | Discovered new exit (range 5) 2059 | -7/Recycling | Core integrity fell below 20% 2065 | -7/Recycling | Destroyed by G-47 Trooper with Particle Gun Last Messages --------------- R-06 Scavenger collects Mni. Grenade Launcher. Dropped Mni. Grenade Launcher. Acquired Core Analyzer. R-06 Scavenger collects Mni. Grenade Launcher. Acquired 79 matter. R-06 Scavenger inserts Mni. Grenade Launcher into recycling unit. EXIT=FOUND G-47 Trooper springs to life. P-60 Hacker springs to life. L-41 Fighter springs to life. I-36 Angel springs to life. D-53 Grenadier springs to life. Imp. Targeting Computer destroyed. U-05 Engineer builds a Wall. Hvy. Ion Cannon destroyed. U-05 Engineer destroyed. System corrupted: Matter fused (-7). L-41 Fighter knocked back. Assault Cannon destroyed. Map ----- +----------------------------------------------------+ | ???????????????????????????????????? | | ???????????????????????????????????? | | ???????????????????????????????????? | | ???????????????????????????????????? | | ???????????????????????????????????? | | ???????????????????????????????????? | | ???????????????????????????????????? | | ???????????????????????????????????? | | ???????????????????????????????????? | | ???????????????????????????????????? | | ???????????????????????????????????? | | ???????# #???????????????????????? | | ???????# ???????????????????????? | | ???????# %???????????????????????? | | ???????# %???????????????????????? | | ???????+ #???????????????????????? | | ???????# #???????????????????????? | | ???????# #???????????????????????? | | ???????# #???????????????????????? | | ???????# #???????????????????????? | | ???????# #############???????????? | | ???????# # ! Y#???????????? | | ???????# # = u [ = #??????? ???? | | ???????# u# Y r ! b # ##### ?? | | ???????# # g i b ud # ?? | | ???????# @|l u # ? | | ???????# #[pp k ! b# ? | | ?????### # = ] % # | | ??#### # ############# | | ??# # ###?????????# ? | | ??# # # ########??# ??? | | ??# # # #??# #????? | | ??# + # #### #????? | | ??# # # + #????? | | ??# # # ## #????? | | ??# + + ## #????? | | ??# # # ## #????? | | ??# # # ## #????# | | ??# # # ## #????" | | ??# # < # ## #####" | | ??# # ####### ### | | ??# #####?????###?# # | | ??######?????????????# # | | ?????????????????????# # | | ?????????????????????# ###+#####+# | | ?????????????????????#####?# |/ | | ??????????????????????????##%!= | | ??????????????????????????## | | ??????????????????????????## [ !! | | ???????????????????????????# | +----------------------------------------------------+ Best States ------------- Heat Dissipation 25 Energy Generation 15 Energy Capacity 170 Matter Stores 280 Matter Capacity 300 Sight Range 16 Terrain Scan Density 10 Evasion (%) 50 Targeting Accuracy 12 Recoil Reduction 2 Item Schematics ----------------- None Robot Schematics ------------------ None Fabricated ------------ Nothing Repaired ---------- Nothing Alien Tech Used ----------------- None Achievements -------------- None Challenges ------------ None Game ------ Seed AuthchipDeepCompressor Manual? 0 Play Time 00:23:51 Cumulative 44.1 hours Start 2025.07.08 @ 13:33:40 End 2025.07.09 @ 23:10:24 Sessions 2 Manual Loads 0 Difficulty Rogue Special Mode None Game No. 207 Rogue 207 Adventurer 0 Explorer 0 Win Type - Total 0 Types 0/0/0/0/0/0/0/0/0/0 Lore% 32 Gallery% 25 Achievement% 22 Wizard Run 0 Options --------- Layout 2 ASCII 0 Keyboard 0 Movement Mouse Keybinds 0 Fullscreen 1 Font 24/Smallcaps Map View 50x44 Zoom Use 0% Tactical HUD 0 Map Filters NONE Filters NONE Steam 1 RUN: 47bc4966-592c-4862-9fda-7ce693dac46f